bitfinex/quotes_BTCUSD_20250614
["timestamp","ask_amount","ask_price","bid_price","bid_amount"]
[1749934204262,1.13208575,105120.0,105110.0,0.27340408]
[1749934204481,1.11646209,105120.0,105110.0,0.27340408]
[1749934204720,1.13208575,105120.0,105110.0,0.27340408]
[1749934204944,1.28204478,105120.0,105110.0,0.26389051]
[1749934205174,1.29766844,105120.0,105110.0,0.27340408]
[1749934205622,1.29766842,105120.0,105110.0,0.26389051]
[1749934205847,1.27088501,105120.0,105110.0,0.26389051]
[1749934206073,1.12480477,105120.0,105110.0,0.27340408]
[1749934206557,1.14042844,105120.0,105110.0,0.26389051]
[1749934206988,1.13373259,105120.0,105110.0,0.26389051]
[1749934207198,1.13150063,105120.0,105110.0,0.26389051]
[1749934207459,1.03535141,105120.0,105110.0,0.26389051]
[1749934207697,1.02865556,105120.0,105110.0,0.26389051]
[1749934207903,1.18589556,105120.0,105110.0,0.26389051]
[1749934208132,1.19482337,105120.0,105110.0,0.26389051]
[1749934208555,1.27981282,105120.0,105110.0,0.26389051]
[1749934208788,1.16803994,105120.0,105110.0,0.27340399]
[1749934209005,1.19482334,105120.0,105110.0,0.27340399]
[1749934209218,1.20151916,105120.0,105110.0,0.27340399]
[1749934209405,1.17696773,105120.0,105110.0,0.27340399]
[1749934209668,1.17696773,105120.0,105110.0,0.26389051]
[1749934209669,1.17473579,105120.0,105110.0,0.26389051]
[1749934209886,1.18366359,105120.0,105110.0,0.27340399]
[1749934210113,1.20151919,105120.0,105110.0,0.26389051]
[1749934210328,1.18366359,105120.0,105110.0,0.26389051]
[1749934210552,1.20151919,105120.0,105110.0,0.26389051]
[1749934211011,1.19482334,105120.0,105110.0,0.27340408]
[1749934211235,1.17696774,105120.0,105110.0,0.27340408]
[1749934211444,1.18366359,105120.0,105110.0,0.27340408]
[1749934211658,1.19482334,105120.0,105110.0,0.27340408]
[1749934211844,1.18366359,105120.0,105110.0,0.27340408]
[1749934212053,1.18589554,105120.0,105110.0,0.27340408]
[1749934212264,1.19482334,105120.0,105110.0,0.27340408]
[1749934212478,1.17696879,105120.0,105110.0,0.27340408]
[1749934212691,1.33229573,105120.0,105110.0,0.2638906]
[1749934212898,1.33229574,105120.0,105110.0,0.2638906]
[1749934213109,1.32113466,105120.0,105110.0,0.2638906]
[1749934213324,1.32336688,105120.0,105110.0,0.27340417]
[1749934213529,1.33899238,105120.0,105110.0,0.2638906]
[1749934214232,1.32113466,105120.0,105110.0,0.27340426]
[1749934214494,1.33006348,105120.0,105110.0,0.27340426]
[1749934214799,1.32336685,105120.0,105110.0,0.27340426]
[1749934215269,1.33899232,105120.0,105110.0,0.27340426]
[1749934215515,1.314438,105120.0,105110.0,0.27340426]
[1749934215785,1.33899232,105120.0,105110.0,0.27340426]
[1749934216000,1.32113463,105120.0,105110.0,0.27340426]
[1749934216258,1.21605657,105120.0,105110.0,0.27340426]
[1749934216480,1.20935994,105120.0,105110.0,0.28291783]
[1749934216745,1.21828878,105120.0,105110.0,0.28291783]
[1749934216977,0.61337244,105120.0,105110.0,0.28291783]
[1749934219692,0.02795282,105120.0,105110.0,0.30194451]
[1749934219915,0.03746539,105120.0,105110.0,0.91355748]
[1749934220378,0.65859111,105120.0,105110.0,0.30194451]
[1749934220611,0.67421616,105120.0,105110.0,0.30194451]
[1749934220832,0.69207338,105120.0,105110.0,0.30194451]
[1749934221080,0.6920733,105120.0,105110.0,0.30194451]
[1749934221304,0.68256056,105120.0,105110.0,0.30194451]
[1749934221534,0.67421618,105120.0,105110.0,0.30194451]
[1749934221766,0.69488979,105120.0,105110.0,0.30194451]
[1749934222005,0.70158698,105120.0,105110.0,0.30194451]
[1749934222248,0.69265819,105120.0,105110.0,0.30194451]
[1749934222508,0.67480057,105120.0,105110.0,0.30194451]
[1749934222732,0.66810395,105120.0,105110.0,0.30194451]
[1749934222959,0.68256124,105120.0,105110.0,0.30194451]
[1749934223185,0.68537742,105120.0,105110.0,0.30194451]
[1749934223404,0.68537514,105120.0,105110.0,0.30194451]
[1749934223623,0.68537058,105120.0,105110.0,0.30194451]
[1749934224251,0.6675176,105120.0,105110.0,0.30194451]
[1749934224463,0.04638954,105120.0,105110.0,0.39809373]
[1749934224673,0.02853753,105120.0,105110.0,0.39809373]
[1749934224888,0.02853753,105120.0,105110.0,1.0097067]
[1749934225546,0.03804992,105120.0,105110.0,1.0097067]
[1749934226633,0.04756348,105120.0,105110.0,1.0097067]
[1749934227338,0.21879727,105120.0,105110.0,0.0641]
[1749934227577,0.82089749,105120.0,105110.0,0.0641]
[1749934227801,0.82089749,105120.0,105110.0,0.27340444]
[1749934228018,0.8275923,105120.0,105110.0,0.2829181]
[1749934228229,0.82089749,105120.0,105110.0,0.2829181]
[1749934228637,0.82759224,105120.0,105110.0,0.2829181]
[1749934228841,0.82089749,105120.0,105110.0,0.2829181]
[1749934229293,0.82759224,105120.0,105110.0,0.2829181]
[1749934229515,0.82759229,105120.0,105110.0,0.2829181]
[1749934229726,0.84544508,105120.0,105110.0,0.2829181]
[1749934229961,0.84544507,105120.0,105110.0,0.2829181]
[1749934230413,0.82759228,105120.0,105110.0,0.2829181]
[1749934230620,0.84544507,105120.0,105110.0,0.2829181]
[1749934231026,0.84544506,105120.0,105110.0,0.2829181]
[1749934231471,0.82759228,105120.0,105110.0,0.2829181]
[1749934231685,0.9237415,105120.0,105110.0,0.27340444]
[1749934231893,0.31212853,105120.0,105110.0,0.27340444]
[1749934232103,0.94159429,105120.0,105110.0,0.28291792]
[1749934232318,0.94159429,105120.0,105110.0,0.2829181]
[1749934232556,0.9348995,105120.0,105110.0,0.2829181]
[1749934232775,0.92538666,105120.0,105110.0,0.2829181]
[1749934232982,0.92538666,105120.0,105110.0,0.29243167]
[1749934232983,0.32046848,105120.0,105110.0,0.29243167]
[1749934233186,0.93208145,105120.0,105110.0,0.29243167]
[1749934233392,0.9253851,105120.0,105110.0,0.29243167]
[1749934233598,0.93207931,105120.0,105110.0,0.29243167]
[1749934234058,0.81807886,105120.0,105110.0,0.29243167]
[1749934234269,0.83593009,105120.0,105110.0,0.29243167]
[1749934234471,0.83593009,105120.0,105110.0,0.2829181]
[1749934234675,0.83593016,105120.0,105110.0,0.27340444]
[1749934234883,0.82923588,105120.0,105110.0,0.2829181]
[1749934235104,0.82923608,105120.0,105110.0,0.2829181]
[1749934235310,0.82923596,105120.0,105110.0,0.2829181]
[1749934235509,0.83593018,105120.0,105110.0,0.2829181]
[1749934235725,0.83593018,105120.0,105110.0,0.29243158]
[1749934235939,0.82759152,105120.0,105110.0,0.29243158]
[1749934236165,0.84544263,105120.0,105110.0,0.29243158]
[1749934236382,0.83651679,105120.0,105110.0,0.30194497]
[1749934236610,0.84544216,105120.0,105110.0,0.30194497]
[1749934236815,0.84767346,105120.0,105110.0,0.30194497]
[1749934237021,0.83874808,105120.0,105110.0,0.30194442]
[1749934237233,0.8298227,105120.0,105110.0,0.30194442]
[1749934237448,0.05531406,105120.0,105110.0,0.30194387]
[1749934237665,0.64015086,105120.0,105110.0,0.30194387]
[1749934237893,0.67362107,105120.0,105110.0,0.30194387]
[1749934238029,0.86387982,105120.0,105110.0,0.29243067]
[1749934238256,0.66692703,105120.0,105110.0,0.30194387]
[1749934238459,0.67362107,105120.0,105110.0,0.30194387]
[1749934238654,0.66692703,105120.0,105110.0,0.30194387]
[1749934238861,0.66469568,105120.0,105110.0,0.30194387]
[1749934239076,0.87339273,105120.0,105110.0,0.30194387]
[1749934239287,0.68313398,105120.0,105110.0,0.30194387]
[1749934239564,0.6742086,105120.0,105110.0,0.30194387]
[1749934239794,0.64966379,105120.0,105110.0,0.30194387]
[1749934239967,0.67420862,105120.0,105110.0,0.30194387]
[1749934240165,0.65858918,105120.0,105110.0,0.30194387]
[1749934240405,0.67643997,105120.0,105110.0,0.30194387]
[1749934240593,0.68313401,105120.0,105110.0,0.30194387]
[1749934240799,0.65858918,105120.0,105110.0,0.30194387]
[1749934241025,0.84884793,105120.0,105110.0,0.29243067]
[1749934241199,0.87339276,105120.0,105110.0,0.29243067]
[1749934241762,0.68313401,105120.0,105110.0,0.30194387]
[1749934241962,0.67420862,105120.0,105110.0,0.30194387]
[1749934242378,0.68313401,105120.0,105110.0,0.30194387]
[1749934242585,0.85554197,105120.0,105110.0,0.28291738]
[1749934243017,0.84661658,105120.0,105110.0,0.28291738]
[1749934243225,0.86669872,105120.0,105110.0,0.28291738]
[1749934243433,0.84884793,105120.0,105110.0,0.28291738]
[1749934243632,0.87339276,105120.0,105110.0,0.28291738]
[1749934243835,0.85554197,105120.0,105110.0,0.28291738]
[1749934244038,0.87339276,105120.0,105110.0,0.28291738]
[1749934244241,0.84661658,105120.0,105110.0,0.28291738]
[1749934244449,0.25285055,105120.0,105110.0,0.28291738]
[1749934244668,0.83992254,105120.0,105110.0,0.28291738]
[1749934244884,0.87338751,105120.0,105110.0,0.28291738]
[1749934245014,0.85553952,105120.0,105110.0,0.28291738]
[1749934245466,0.84661553,105120.0,105110.0,0.28291738]
[1749934245836,0.94276475,105120.0,105110.0,0.28291738]
[1749934246053,0.96061274,105120.0,105110.0,0.27340399]
[1749934246255,0.95110039,105120.0,105110.0,0.27340399]
[1749934246479,0.95333143,105120.0,105110.0,0.27340399]
[1749934246682,0.92597073,105120.0,105110.0,0.26389051]
[1749934246894,0.92373972,105120.0,105110.0,0.26389051]
[1749934247131,0.92597073,105120.0,105110.0,0.25437685]
[1749934247376,0.94099894,105120.0,105110.0,0.2638906]
[1749934247599,0.93430593,105120.0,105110.0,0.27340426]
[1749934247846,0.91422688,105120.0,105110.0,0.27340426]
[1749934248070,0.94099894,105120.0,105110.0,0.27340426]
[1749934248285,0.94099894,105120.0,105110.0,0.0641]
[1749934248286,0.972726,105120.0,105110.0,0.0641]
[1749934248504,2.2634889,105120.0,105110.0,0.003]
[1749934248723,2.49018272,105120.0,105110.0,0.003]
[1749934248942,2.49018438,105120.0,105110.0,0.003]
[1749934249148,2.47233488,105120.0,105110.0,0.003]
[1749934249352,0.19979051,105110.0,105100.0,0.0331]
[1749934249558,0.96848348,105110.0,105100.0,0.0331]
[1749934249767,1.09040266,105110.0,105100.0,0.0331]
[1749934249982,1.06585818,105110.0,105100.0,0.0331]
[1749934250189,1.07255213,105110.0,105100.0,0.0633]
[1749934250608,1.001953,105110.0,105100.0,0.0633]
[1749934250808,0.97740861,105110.0,105100.0,0.0653]
[1749934251023,1.00195262,105110.0,105100.0,0.0653]
[1749934251236,0.99302751,105110.0,105100.0,0.0653]
[1749934251447,0.98633373,105110.0,105100.0,0.0653]
[1749934251649,1.00195271,105110.0,105100.0,0.0653]
[1749934251856,0.99302759,105110.0,105100.0,0.0653]
[1749934252098,0.97517732,105110.0,105100.0,0.0653]
[1749934252312,1.00195271,105110.0,105100.0,0.0663]
[1749934252523,0.99525885,105110.0,105100.0,0.0663]
[1749934252764,0.97517732,105110.0,105100.0,0.0663]
[1749934252994,0.99525887,105110.0,105100.0,0.0663]
[1749934253208,0.99527325,105110.0,105100.0,0.0663]
[1749934253842,0.99525635,105110.0,105100.0,0.0663]
[1749934254066,0.99522254,105110.0,105100.0,0.0663]
[1749934254733,0.9952226,105110.0,105100.0,0.0663]
[1749934255466,0.97739652,105110.0,105100.0,0.0663]
[1749934255684,0.98630956,105110.0,105100.0,0.0663]
[1749934255823,0.9952226,105110.0,105100.0,0.0663]
[1749934256021,0.99522258,105110.0,105100.0,0.0663]
[1749934256238,0.98630955,105110.0,105100.0,0.0663]
[1749934256452,0.99522258,105110.0,105100.0,0.0663]
[1749934256672,0.97739651,105110.0,105100.0,0.0663]
[1749934257106,0.9952226,105110.0,105100.0,0.0663]
[1749934257310,1.09137182,105110.0,105100.0,0.0663]
[1749934258177,1.07354574,105110.0,105100.0,0.0663]
[1749934258581,1.07414627,105110.0,105100.0,0.26610969]
[1749934258789,1.06403208,105110.0,105100.0,0.07581474]
[1749934259001,1.06403204,105110.0,105100.0,0.07581474]
[1749934259201,1.05511904,105110.0,105100.0,0.07581474]
[1749934259685,0.4524191,105110.0,105100.0,0.27562425]
[1749934259921,1.00968348,105110.0,105100.0,0.28513872]
[1749934260138,1.00968348,105110.0,105100.0,0.27562425]
[1749934260802,1.00968348,105110.0,105100.0,0.26610969]
[1749934261233,1.0185963,105110.0,105100.0,0.26610969]
[1749934261686,1.11474552,105110.0,105100.0,0.26610969]
[1749934261932,1.11474552,105110.0,105100.0,0.27562425]
[1749934262149,1.1147455,105110.0,105100.0,0.27562425]
[1749934262366,1.10523185,105110.0,105100.0,0.27562425]
[1749934262608,1.10523184,105110.0,105100.0,0.27562425]
[1749934262816,1.00908262,105110.0,105100.0,0.27562425]
[1749934263071,1.00908262,105110.0,105100.0,0.26610969]
[1749934263505,1.01577989,105110.0,105100.0,0.26610969]
[1749934263729,1.00909952,105110.0,105100.0,0.26610969]
[1749934263951,1.01579679,105110.0,105100.0,0.26610969]
[1749934264370,1.00909952,105110.0,105100.0,0.26610969]
[1749934264579,1.00686709,105110.0,105100.0,0.0663]
[1749934264782,1.01579679,105110.0,105100.0,0.0663]
[1749934264985,1.00016982,105110.0,105100.0,0.0663]
[1749934265159,1.00686709,105110.0,105100.0,0.0663]
[1749934265493,1.01579679,105110.0,105100.0,0.0663]
[1749934265678,1.01352436,105110.0,105100.0,0.0663]
[1749934265886,1.02245406,105110.0,105100.0,0.0663]
[1749934266337,1.00682709,105110.0,105100.0,0.0663]
[1749934266528,1.02245406,105110.0,105100.0,0.0663]
[1749934266742,1.10967123,105110.0,105100.0,0.0663]
[1749934266993,1.1185978,105110.0,105100.0,0.0663]
[1749934267172,1.11859779,105110.0,105100.0,0.0663]
[1749934267427,1.10297631,105110.0,105100.0,0.0663]
[1749934267637,1.11190287,105110.0,105100.0,0.0663]
[1749934267866,1.1185978,105110.0,105100.0,0.0663]
[1749934268318,1.11190288,105110.0,105100.0,0.0663]
[1749934268525,1.02244858,105110.0,105100.0,0.0663]
[1749934268739,1.01575366,105110.0,105100.0,0.0663]
[1749934269156,1.01352201,105110.0,105100.0,0.0663]
[1749934269565,1.01575366,105110.0,105100.0,0.0663]
[1749934269989,1.02244858,105110.0,105100.0,0.0663]
[1749934270666,1.01575366,105110.0,105100.0,0.0663]
[1749934270884,1.02244858,105110.0,105100.0,0.0663]
[1749934271099,1.01575366,105110.0,105100.0,0.0663]
[1749934271315,1.02244858,105110.0,105100.0,0.0663]
[1749934271529,1.11190288,105110.0,105100.0,0.0663]
[1749934271744,1.10297631,105110.0,105100.0,0.0663]
[1749934271986,1.10967142,105110.0,105100.0,0.0663]
[1749934272214,1.10297631,105110.0,105100.0,0.0663]
[1749934272439,1.10967148,105110.0,105100.0,0.0361]
[1749934272660,1.59914498,105110.0,105100.0,0.003]
[1749934272885,1.61882407,105110.0,105100.0,0.003]
[1749934273115,2.32729227,105110.0,105100.0,0.003]
[1749934273339,1.96567954,105110.0,105100.0,0.003]
[1749934273569,0.42934373,105090.0,105080.0,0.031]
[1749934273782,1.28640614,105090.0,105080.0,0.031]
[1749934273992,1.29310287,105090.0,105080.0,0.031]
[1749934274208,1.28640614,105090.0,105080.0,0.031]
[1749934274618,1.29310286,105090.0,105080.0,0.031]
[1749934274837,1.20465342,105090.0,105080.0,0.031]
[1749934275045,1.1979567,105090.0,105080.0,0.031]
[1749934275257,1.13711133,105090.0,105080.0,0.031]
[1749934275467,1.13041461,105090.0,105080.0,0.031]
[1749934275678,1.13711133,105090.0,105080.0,0.031]
[1749934275888,1.13711133,105090.0,105080.0,0.034]
[1749934277390,1.13711136,105090.0,105080.0,0.034]
[1749934277821,1.1371114,105090.0,105080.0,0.003]
[1749934278030,1.13711141,105090.0,105080.0,0.003]
[1749934278289,1.1654262,105090.0,105080.0,0.003]
[1749934278502,1.15872939,105090.0,105080.0,0.003]
[1749934278707,1.16542619,105090.0,105080.0,0.002]
[1749934278912,0.19984754,105080.0,105070.0,0.064]
[1749934279122,0.24104754,105080.0,105070.0,0.064]
[1749934279816,0.78511842,105080.0,105070.0,0.064]
[1749934280028,0.79181532,105080.0,105070.0,0.064]
[1749934280248,0.98420635,105080.0,105070.0,0.00347593]
[1749934280462,1.2061224,105080.0,105070.0,0.00347593]
[1749934280676,1.21281979,105080.0,105070.0,0.00347593]
[1749934281120,1.2128198,105080.0,105070.0,0.00347593]
[1749934281548,2.11689068,105080.0,105070.0,0.00347593]
[1749934281765,2.18063219,105080.0,105070.0,0.00347593]
[1749934281982,2.17393413,105080.0,105070.0,0.00347593]
[1749934282200,2.18063256,105080.0,105070.0,0.00347593]
[1749934282415,2.17393413,105080.0,105070.0,0.00247593]
[1749934282629,2.18163265,105080.0,105070.0,0.00047593]
[1749934282842,2.18463274,105080.0,105070.0,0.00047593]
[1749934283060,2.17793413,105080.0,105070.0,0.00047593]
[1749934283491,2.18463275,105080.0,105070.0,0.00047593]
[1749934283712,0.75349432,105050.0,105040.0,0.0636]
[1749934283924,0.50273391,105050.0,105040.0,0.06364759]
[1749934284136,0.50273407,105050.0,105040.0,0.06364759]
[1749934284564,1.04010376,105050.0,105040.0,0.06364759]
[1749934285269,0.98027332,105050.0,105040.0,0.06564759]
[1749934285685,0.98027332,105050.0,105040.0,0.06664759]
[1749934285904,0.98031332,105050.0,105040.0,0.06664759]
[1749934287956,0.98031332,105050.0,105040.0,0.00304759]
[1749934287957,1.46865508,105050.0,105040.0,0.00304759]
[1749934288201,1.48319593,105050.0,105040.0,0.00304759]
[1749934288425,1.57934515,105050.0,105040.0,0.00304759]
[1749934288865,1.57934515,105050.0,105040.0,0.00204759]
[1749934289085,1.28599593,105050.0,105040.0,4.759e-05]
[1749934289295,1.43509593,105050.0,105040.0,4.759e-05]
[1749934289934,1.43409593,105050.0,105040.0,4.759e-05]
[1749934290142,1.43109593,105050.0,105040.0,4.759e-05]
[1749934290354,1.43409593,105050.0,105040.0,4.759e-05]
[1749934290566,1.53024515,105050.0,105040.0,4.759e-05]
[1749934290983,1.58214515,105050.0,105040.0,4.759e-05]
[1749934292060,1.38394515,105050.0,105040.0,4.759e-05]
[1749934292278,1.58214515,105050.0,105040.0,4.759e-05]
[1749934293824,1.46689593,105050.0,105040.0,4.759e-05]
[1749934294245,1.43409593,105050.0,105040.0,0.03124759]
[1749934296899,1.44079835,105050.0,105040.0,4.759e-05]
[1749934297111,1.47369836,105050.0,105040.0,4.759e-05]
[1749934297328,1.4736984,105050.0,105040.0,4.759e-05]
[1749934297546,1.56984762,105050.0,105040.0,4.759e-05]
[1749934298008,1.56984759,105050.0,105040.0,4.759e-05]
[1749934298221,1.56984762,105050.0,105040.0,4.759e-05]
[1749934298432,1.56314515,105050.0,105040.0,4.759e-05]
[1749934298645,1.56984762,105050.0,105040.0,4.759e-05]
[1749934299103,1.58894762,105050.0,105040.0,4.759e-05]
[1749934299337,1.53694766,105050.0,105040.0,4.759e-05]
[1749934299562,1.4480576,105050.0,105040.0,0.06164759]
[1749934299775,1.63955508,105050.0,105040.0,0.06164759]
[1749934300885,1.0954842,105050.0,105040.0,0.06164759]
[1749934301099,1.63955508,105050.0,105040.0,0.06164759]
[1749934310086,1.63955508,105050.0,105040.0,0.03124759]
[1749934310534,1.7357043,105050.0,105040.0,0.03124759]
[1749934311180,1.7357043,105050.0,105040.0,4.759e-05]
[1749934311867,1.75024515,105050.0,105040.0,4.759e-05]
[1749934314332,1.75024515,105050.0,105040.0,0.03084759]
[1749934316632,1.75024515,105050.0,105040.0,4.759e-05]
[1749934316913,1.78274515,105050.0,105040.0,4.759e-05]
[1749934317200,1.75024515,105050.0,105040.0,4.759e-05]
[1749934318103,1.78274515,105050.0,105040.0,4.759e-05]
[1749934318326,1.75024515,105050.0,105040.0,4.759e-05]
[1749934319480,1.78154515,105050.0,105040.0,4.759e-05]
[1749934319932,1.82064515,105050.0,105040.0,4.759e-05]
[1749934320180,2.36471603,105050.0,105040.0,4.759e-05]
[1749934320409,2.42163064,105050.0,105040.0,4.759e-05]
[1749934320862,0.62946331,105030.0,105020.0,0.0637]
[1749934321100,1.76673595,105030.0,105020.0,0.06374762]
[1749934321552,1.85518539,105030.0,105020.0,0.06374762]
[1749934321827,1.69822539,105030.0,105020.0,0.06374762]
[1749934322054,1.80789595,105030.0,105020.0,0.06374762]
[1749934322334,1.80789595,105030.0,105020.0,0.06574762]
[1749934322558,1.80789595,105030.0,105020.0,0.06674762]
[1749934323458,1.80789595,105030.0,105020.0,0.06574762]
[1749934324155,1.80789595,105030.0,105020.0,0.06374762]
[1749934324375,1.70592517,105030.0,105020.0,0.06374762]
[1749934324602,1.90404517,105030.0,105020.0,0.06374762]
[1749934324840,1.06570507,105030.0,105020.0,0.06374762]
[1749934325065,1.60977595,105030.0,105020.0,0.06374762]
[1749934325290,1.80785595,105030.0,105020.0,0.06374762]
[1749934325509,1.60977595,105030.0,105020.0,0.06374762]
[1749934325727,1.80785595,105030.0,105020.0,0.06374762]
[1749934326165,1.80789595,105030.0,105020.0,0.06374762]
[1749934326377,1.90404517,105030.0,105020.0,0.06374762]
[1749934326623,1.80789595,105030.0,105020.0,0.06374762]
[1749934327048,1.60977595,105030.0,105020.0,0.06374762]
[1749934327270,1.80789595,105030.0,105020.0,0.06374762]
[1749934333291,1.80777595,105030.0,105020.0,0.06374762]
[1749934333739,1.90392517,105030.0,105020.0,0.06374762]
[1749934334835,1.70592517,105030.0,105020.0,0.06374762]
[1749934335054,1.90392517,105030.0,105020.0,0.06374762]
[1749934338926,1.35985429,105030.0,105020.0,0.06374762]
[1749934339150,1.90392517,105030.0,105020.0,0.06374762]
[1749934340559,0.2,105030.0,105020.0,0.26370943]
[1749934340786,0.22656144,105030.0,105020.0,0.82682267]
[1749934341007,0.22656144,105030.0,105020.0,0.28275179]
[1749934341225,0.02856144,105030.0,105020.0,0.28275179]
[1749934341456,0.06964144,105030.0,105020.0,0.28275179]
[1749934341694,0.01904072,105030.0,105020.0,0.28275179]
[1749934341902,0.34951954,105040.0,105030.0,0.28298394]
[1749934342131,0.21926302,105060.0,105040.0,0.28296291]
[1749934342375,0.19038312,105060.0,105050.0,0.27342353]
[1749934342615,0.079152,105060.0,105050.0,0.28294217]
[1749934342907,0.43591777,105060.0,105050.0,0.28294235]
[1749934343195,0.43591777,105060.0,105050.0,0.29246099]
[1749934343196,0.05059764,105060.0,105050.0,0.29246099]
[1749934343466,0.41888113,105060.0,105050.0,0.28294235]
[1749934344010,0.41688113,105060.0,105050.0,0.28294235]
[1749934344228,0.51303035,105060.0,105050.0,0.27342362]
[1749934344450,1.04758359,105060.0,105050.0,0.27342353]
[1749934344672,1.04758359,105060.0,105050.0,0.2734238]
[1749934345407,1.0285475,105060.0,105050.0,0.27342398]
[1749934345640,1.0285475,105060.0,105050.0,0.28294307]
[1749934347656,1.0285475,105060.0,105050.0,0.07351927]
[1749934347892,1.0285475,105060.0,105050.0,0.064]
[1749934351802,1.46478926,105060.0,105050.0,0.064]
[1749934352043,1.66478926,105060.0,105050.0,0.064]
[1749934353674,1.56864004,105060.0,105050.0,0.064]
[1749934354844,1.5753414,105060.0,105050.0,0.064]
[1749934355102,1.56864004,105060.0,105050.0,0.064]
[1749934355384,1.61534139,105060.0,105050.0,0.064]
[1749934355708,1.61534139,105060.0,105020.0,0.09619684]
[1749934355709,0.20946331,105030.0,105020.0,0.09619684]
[1749934355907,0.20946331,105030.0,105020.0,0.10571883]
[1749934356165,0.20946331,105030.0,105020.0,0.26290952]
[1749934356439,0.20946331,105030.0,105020.0,0.28195323]
[1749934356984,0.02856261,105030.0,105020.0,0.30099649]
[1749934357220,0.02856261,105030.0,105020.0,0.30099595]
[1749934357457,0.02856261,105030.0,105020.0,0.30699541]
[1749934357702,0.0285618,105030.0,105020.0,0.40314463]
[1749934357930,0.0380827,105030.0,105020.0,0.40314463]
[1749934358177,0.0380827,105030.0,105020.0,0.30699541]
[1749934359128,0.21898448,105030.0,105020.0,0.26890952]
[1749934359361,0.21898448,105030.0,105020.0,0.28795314]
[1749934359628,0.21898448,105030.0,105020.0,0.29747477]
[1749934359858,0.21898448,105030.0,105020.0,0.30699631]
[1749934361662,0.0285627,105030.0,105020.0,0.30699523]
[1749934362146,0.03808378,105030.0,105020.0,0.30699523]
[1749934363753,0.22850556,105030.0,105020.0,0.29747387]
[1749934363963,0.03808378,105030.0,105020.0,0.29747387]
[1749934365573,0.0285627,105030.0,105020.0,0.30699523]
[1749934365800,0.01904171,105030.0,105020.0,0.30699523]
[1749934369251,0.0285627,105030.0,105020.0,0.30699523]
[1749934369473,0.01904171,105030.0,105020.0,0.28795224]
[1749934369702,0.01904171,105030.0,105020.0,0.28795233]
[1749934369951,0.01904171,105030.0,105020.0,0.29747369]
[1749934370188,0.01904171,105030.0,105020.0,0.28795233]
[1749934370437,0.01904135,105030.0,105020.0,0.29747369]
[1749934370665,0.02856225,105030.0,105020.0,0.29747369]
[1749934370878,0.01904135,105030.0,105020.0,0.29747369]
[1749934371331,0.02856225,105030.0,105020.0,0.29747369]
[1749934372627,0.03808324,105030.0,105020.0,0.29747369]
[1749934374403,0.03808324,105030.0,105020.0,0.28795233]
[1749934374610,0.04760432,105030.0,105020.0,0.28795233]
[1749934374822,0.84968395,105030.0,105020.0,0.06894762]
[1749934375069,0.74401374,105030.0,105020.0,0.06894762]
[1749934378458,0.94401374,105030.0,105020.0,0.06894762]
[1749934379094,0.97263874,105030.0,105020.0,0.06894762]
[1749934380282,0.42856786,105030.0,105020.0,0.06894762]
[1749934380498,0.97263874,105030.0,105020.0,0.06894762]
[1749934382456,0.97263874,105030.0,105020.0,0.07846961]
[1749934384025,0.97263874,105030.0,105020.0,0.06894762]
[1749934385483,1.17047874,105030.0,105020.0,0.06894762]
[1749934386184,0.62640786,105030.0,105020.0,0.06894762]
[1749934386384,1.17047874,105030.0,105020.0,0.06894762]
[1749934388841,0.97053588,105030.0,105020.0,0.06894762]
[1749934389097,1.16095766,105030.0,105020.0,0.06894762]
[1749934394734,1.16091766,105030.0,105020.0,0.06894762]
[1749934397303,1.25706688,105030.0,105020.0,0.06894762]
[1749934397644,1.16091766,105030.0,105020.0,0.06894762]
[1749934398499,0.96091766,105030.0,105020.0,0.06894762]
[1749934403119,0.76311766,105030.0,105020.0,0.06894762]
[1749934403371,0.96087766,105030.0,105020.0,0.06894762]
[1749934405578,1.16087766,105030.0,105020.0,0.06894762]
[1749934405793,1.25702688,105030.0,105020.0,0.06894762]
[1749934406021,1.25702688,105030.0,105020.0,0.06694762]
[1749934406241,1.25702688,105030.0,105020.0,0.06394762]
[1749934406671,1.35326864,105030.0,105020.0,0.00304762]
[1749934406917,1.59711942,105030.0,105020.0,0.00304762]
[1749934407145,1.62721942,105030.0,105020.0,0.00304762]
[1749934407784,1.62721942,105030.0,105020.0,0.00104762]
[1749934407995,1.62721942,105030.0,105020.0,4.762e-05]
[1749934408211,1.59711942,105030.0,105020.0,4.762e-05]
[1749934408440,1.71236864,105030.0,105020.0,4.762e-05]
[1749934408669,1.75800949,105030.0,105020.0,4.762e-05]
[1749934408885,1.75800949,105030.0,104990.0,0.0324]
[1749934408886,0.54952316,105000.0,104990.0,0.0324]
[1749934409106,0.54952316,105000.0,104980.0,0.0628]
[1749934409107,0.4095433,104990.0,104980.0,0.0628]
[1749934409328,1.06985594,104990.0,104980.0,0.0628]
[1749934409800,1.09849494,104990.0,104980.0,0.0628]
[1749934410246,1.09849494,104990.0,104960.0,0.22354748]
[1749934410247,0.19051247,104980.0,104960.0,0.22354748]
[1749934410469,0.38829062,104970.0,104960.0,0.27637829]
[1749934411150,0.39781706,104970.0,104960.0,0.28590536]
[1749934411365,0.42843657,104970.0,104960.0,0.28590536]
[1749934411584,0.41891041,104970.0,104960.0,0.31639198]
[1749934412007,0.41891041,104970.0,104960.0,0.26885113]
[1749934412224,0.41891041,104970.0,104960.0,0.26985113]
[1749934413088,0.41891041,104970.0,104960.0,0.06977631]
[1749934413304,0.40938397,104970.0,104960.0,0.06977631]
[1749934413754,0.40938397,104970.0,104960.0,0.07930374]
[1749934414634,0.21162397,104970.0,104960.0,0.27937968]
[1749934414847,0.40938397,104970.0,104960.0,0.26985252]
[1749934415085,0.95345485,104970.0,104960.0,0.00347631]
[1749934415514,0.21162397,104970.0,104960.0,0.22662509]
[1749934415732,0.40938397,104970.0,104960.0,0.26755243]
[1749934415940,0.21162397,104970.0,104960.0,0.26755243]
[1749934416157,0.40938397,104970.0,104960.0,0.26755243]
[1749934417901,0.21162397,104970.0,104960.0,0.27707959]
[1749934418113,0.40942397,104970.0,104960.0,0.27707959]
[1749934419201,0.03061979,104970.0,104960.0,0.27707959]
[1749934419415,0.54382158,104990.0,104980.0,0.04142562]
[1749934419633,0.54382158,104990.0,104980.0,0.29261386]
[1749934419634,0.63825115,104990.0,104980.0,0.29261386]
[1749934419915,0.24768689,104990.0,104980.0,0.29261386]
[1749934420131,0.22641215,104990.0,104980.0,0.29261386]
[1749934420339,0.21688789,104990.0,104980.0,0.29261386]
[1749934420772,0.59720577,105000.0,104990.0,0.27354312]
[1749934420985,0.89128753,105000.0,104990.0,0.27354321]
[1749934421207,1.08176372,105000.0,104990.0,0.26401886]
[1749934421419,1.08176372,105000.0,104990.0,0.2735433]
[1749934421624,1.0940879,105000.0,104990.0,0.2735433]
[1749934422056,1.0940879,105000.0,104990.0,0.2745433]
[1749934422270,0.40000588,105000.0,104990.0,0.29359173]
[1749934422486,0.61689258,105000.0,104990.0,0.29359182]
[1749934422696,0.62641629,105000.0,104990.0,0.29359182]
[1749934422942,0.62641629,105000.0,104990.0,0.29659182]
[1749934423633,0.39994129,105000.0,104990.0,0.29659182]